Cogmind - Beta 15 @@@ ROGUE MODE // 2025.08.29 @ 16:51:38 Player: shapeshifter Result: Self-destructed Performance ------------- Evolutions (2) 1000 Regions Visited (6) 1200 Robots Destroyed (50) 250 Value Destroyed (2000) 2000 Prototype IDs (24) 480 Alien Tech Used (0) 0 Bonus (619) 619 TOTAL SCORE: 5549 Bonus ------- High Alert Combat Kills 59 Follower Combat Kills 60 Entered Garrisons 200 Aligned with FarCom 300 Cogmind --------- Core Integrity 27/550 Matter 273/300 Energy 160/160 System Corruption 0% Temperature Cool (0) Movement Treading (250) Ox1 Location -8/Garrison Parts ------- > --- POWER (1) -------- Light Nuclear Core > --- PROPULSION (2) --- Armored Treads > --- UTILITY (4) ------ Large Storage Unit Hacking Suite Hacking Suite > --- WEAPON (4) ------- Makeshift Spear > --- INVENTORY (15) --- Light Nuclear Core Carbon-fiber Leg High-capacity Storage Unit Large Matter Pod (150) Compact Matter Pod (0) Machine Analyzer Improved Sensor Array Improved Signal Interpreter 0b10 Alert Chip Actuator Array Skeleton Box Guided Plasma Cannon Peak State ------------ > --- POWER ------------ Light Nuclear Core > --- PROPULSION ------- Flexi-carbon Leg Flexi-carbon Leg > --- UTILITY ---------- Large Storage Unit Improved Light Armor Plating Hacking Suite Hacking Suite > --- WEAPON ----------- Light Assault Rifle Bore Cannon > --- INVENTORY -------- Armored Wheel High-capacity Storage Unit Medium Battery Large Matter Pod Compact Matter Pod Signal Interpreter 0b10 Alert Chip Launcher Guidance Computer Actuator Array Skeleton Box Guided Plasma Cannon Mini Grenade Launcher Makeshift Spear [Rating: 33] Favorites ----------- Power Light Nuclear Core Engine Light Ion Engine Power Core Light Nuclear Core Propulsion Flexi-carbon Leg Treads Light Treads Leg Flexi-carbon Leg Wheel Wheel Utility Large Storage Unit Device Seismic Detector Storage Large Storage Unit Hackware Hacking Suite Protection Improved Light Armor Plating Weapon Assault Rifle Ballistic Gun Assault Rifle Ballistic Cannon Bore Cannon Launcher Mini Grenade Launcher Piercing Weapon Makeshift Spear Build | -11 -10 -10 -10 -9 -8 -8 ------- Run | Yrd Mat Min Exi Min Mat Gar Slots Evolved 4 | . . . . . 4 . Power . | . . . . . . . Propulsion . | . . . . . . . Utility 2 | . . . . . 2 . Weapon 2 | . . . . . 2 . Parts Attached 35 | 7 5 3 2 . 13 5 Power 6 | 1 2 . . . 2 1 Engine 2 | 1 1 . . . . . Core 4 | . 1 . . . 2 1 Reactor . | . . . . . . . Propulsion 9 | 2 . 2 2 . 1 2 Treads 3 | 2 . . . . . 1 Leg 3 | . . . 2 . . 1 Wheel 3 | . . 2 . . 1 . Hover . | . . . . . . . Flight . | . . . . . . . Utility 8 | 2 1 1 . . 3 1 Device 1 | 1 . . . . . . Storage 2 | 1 1 . . . . . Processor . | . . . . . . . Hackware 2 | . . . . . 2 . Protection 3 | . . 1 . . 1 1 Artifact . | . . . . . . . Weapon 12 | 2 2 . . . 7 1 Energy Gun . | . . . . . . . Energy Cannon . | . . . . . . . Ballistic Gun 8 | 2 2 . . . 4 . Ballistic Cannon 1 | . . . . . 1 . Launcher 2 | . . . . . 2 . Special Weapon . | . . . . . . . Impact Weapon . | . . . . . . . Slashing Weapon . | . . . . . . . Piercing Weapon 1 | . . . . . . 1 Special Melee Weapon . | . . . . . . . Unidentified Prototypes 1 | . . . . . 1 . Parts Lost 18 | . 1 2 . . 12 3 Power 2 | . 1 . . . 1 . Propulsion 5 | . . 2 . . 2 1 Utility 3 | . . . . . 2 1 Weapon 8 | . . . . . 7 1 Highest Loss Streak 6 | . 1 2 . . 6 1 To Critical Strikes . | . . . . . . . Average Backups 9 | 2 5 5 11 14 14 11 Power . | . . . . . . . Propulsion 1 | 1 2 . 2 . 1 1 Utility 4 | . 1 2 5 7 8 8 Weapon 2 | . 1 2 4 5 3 1 Tool/Special . | . . . . . . . Unused Backups 14 | . . . . 1 3 10 Power . | . . . . . . . Propulsion . | . . . . . . . Utility 12 | . . . . 1 3 8 Weapon 1 | . . . . . . 1 Tool/Special 1 | . . . . . . 1 Average Slot Usage (%) 88 | . 99 99 100 100 79 54 Engine 2 | . 11 . . . . . Core 7 | . 1 14 14 14 8 . Treads 8 | . 28 2 . . . 8 Leg 6 | . . . . 28 17 . Wheel 8 | . . 25 28 . . 1 Device 5 | . 14 9 . . . . Storage 12 | . 14 14 14 14 9 9 Hackware 5 | . . . . . 15 18 Protection 7 | . . 4 14 14 8 8 Ballistic Gun 21 | . 28 28 28 28 16 . Peak Build Rating 33 | 7 9 13 23 23 33 22 Average Rating 15 | 4 7 10 13 22 29 18 On Entrance 13 | . 7 9 13 23 23 19 Naked Turns . | . . . . . . . Heaviest Build 38 | 13 30 32 32 32 38 28 Greatest Support 40 | 40 40 40 40 40 40 20 Greatest Overweight (x) 7 | . . 1 1 . 1 7 Average Overweight (x) . | . . . . . . 1 Largest Inventory Capacity 15 | 8 15 15 15 15 15 15 Average Capacity 13 | 7 11 15 15 15 15 15 Most Carried 15 | 4 8 9 15 15 15 13 Average Carried 9 | 2 5 5 11 14 14 11 Final Capacity 15 | 8 15 15 15 15 15 15 Final Carried 15 | 3 6 9 15 15 13 12 Class Distribution -------------------- 54% | Mutant 20% | Scavenger-Mutant 20% | Hacker-Mutant 4% | Scavenger-Skirmisher Dominant Class ---------------- Mutant | -10/Materials Mutant | -10/Mines Mutant | -10/Exiles Scavenger-Mutant | -9/Mines Scavenger-Mutant | -8/Materials Hacker-Mutant | -8/Garrison Resources | -11 -10 -10 -10 -9 -8 -8 ----------- Run | Yrd Mat Min Exi Min Mat Gar Matter Collected 1412 | 239 388 98 . 52 365 270 Remotely . | . . . . . . . Salvage Created 1702 | 33 424 154 . 10 670 411 Parts 92 | 6 24 7 . 2 39 14 Haulers Intercepted . | . . . . . . . Recyclers Shooed 5 | 1 . . . . 4 . Parts Field Recycled . | . . . . . . . Retrieved Matter . | . . . . . . . Parts Self-Destructed . | . . . . . . . Prevented . | . . . . . . . Kills | -11 -10 -10 -10 -9 -8 -8 ------- Run | Yrd Mat Min Exi Min Mat Gar Combat Hostiles Destroyed 45 | . 12 6 . 1 17 9 Melee 5 | . . . . . . 5 Guns 26 | . 12 6 . 1 7 . Cannons 4 | . . . . . 4 . AOE 10 | . . . . . 6 4 Classes Destroyed 9 | 1 2 1 . . 5 . Worker 2 | . . . . . 2 . Builder 2 | . . . . . 2 . Tunneler 3 | 2 . . . . 1 . Recycler 2 | . . . . . 2 . Swarmer 9 | . 3 . . 1 5 . Grunt 27 | . 9 2 . . 10 6 Duelist 1 | . . . . . 1 . Hunter 4 | . . . . . 1 3 Assembled 4 | . . 4 . . . . Best Kill Streak 9 | 1 4 2 . 1 9 3 Combat Bots Only 6 | . 4 2 . 1 6 3 Max Kills in Single Turn 2 | 1 1 1 . 1 2 2 Gunslinging . | . . . . . . . Exploded 2 | . . . . . 2 2 Melee 1 | . . . . . . 1 Uniques/NPCs Destroyed . | . . . . . . . Combat | -11 -10 -10 -10 -9 -8 -8 -------- Run | Yrd Mat Min Exi Min Mat Gar Hostile Shots Fired 280 | . 57 19 . 1 159 44 Missed 72 | . 14 7 . . 39 12 Hits 208 | . 43 12 . 1 120 32 Melee 5 | . . 2 . . 3 . Projectile 203 | . 43 10 . 1 117 32 Critical Strikes 5 | . . . . . 5 . Actively Blocked 1 | . . . . . 1 . Damage Taken 3047 | . 528 208 . 15 1585 711 Core 654 | . 71 54 . 6 305 218 Absorbed by Shields 31 | . . . . . . 31 Redirected to Shielding 151 | . . . . . 108 43 Core Remaining (%) 73 | 100 . . . 47 . . Volleys Fired 144 | 5 43 12 . 2 73 9 Largest 4 | 2 2 2 . 2 4 1 Hottest 80 | 40 40 40 . 40 80 30 Shots Fired 235 | 10 86 24 . 4 102 9 Gun 183 | 10 86 24 . 4 59 . Cannon 31 | . . . . . 31 . Launcher 21 | . . . . . 12 9 Special . | . . . . . . . Kinetic 214 | 10 86 24 . 4 90 . Thermal . | . . . . . . . Explosive 21 | . . . . . 12 9 Electromagnetic . | . . . . . . . Robot Hit Streak 16 | 4 15 12 . 1 15 16 Robot Miss Streak 3 | 1 3 2 . 2 3 1 Penetration Max 1 | . . . . . 1 . Secondary Targets 3 | . . . . . 3 . Max Gunslinging Chain 1 | . . . . . 1 . Shots Hit Robots 155 | 7 53 18 . 1 56 20 Core Hits 99 | 3 22 12 . 1 47 14 Critical Kills 4 | . . . . . 4 . Critical Parts Destroyed 7 | . 1 . . . 6 . Critical Strikes 12 | . 1 . . . 10 1 Destroy 11 | . 1 . . . 10 . Impale 1 | . . . . . . 1 Melee Attacks 20 | . . . . . . 20 Impact . | . . . . . . . Slashing . | . . . . . . . Piercing 20 | . . . . . . 20 Sneak Attacks 1 | . . . . . . 1 Combat Hostiles 1 | . . . . . . 1 Follow-up Attacks . | . . . . . . . Damage Inflicted 3687 | 84 678 228 . 15 1921 761 Guns 1341 | 84 678 228 . 15 336 . Cannons 470 | . . . . . 470 . Explosions 1381 | . . . . . 1103 278 Melee 483 | . . . . . . 483 Ramming 12 | . . . . . 12 . Kinetic 1811 | 84 678 228 . 15 806 . Thermal . | . . . . . . . Explosive 1381 | . . . . . 1103 278 Electromagnetic . | . . . . . . . Impact . | . . . . . . . Slashing . | . . . . . . . Piercing 483 | . . . . . . 483 Highest Corruption . | . . . . . . . Average Corruption . | . . . . . . . Corruption Purged . | . . . . . . . Corruption Blocked . | . . . . . . . Overload Shots . | . . . . . . . Overflow Damage 19 | . . . . . 1 18 Projectiles 1 | . . . . . 1 . Explosions 18 | . . . . . . 18 Melee . | . . . . . . . Knockbacks 6 | . . . . . 6 . Impact . | . . . . . . . Kinetic 5 | . . . . . 5 . Secondary 1 | . . . . . 1 . Self-Inflicted Damage 242 | . . . . . 6 236 Shots 6 | . . . . . . 6 Rammed 1 | . . . . . 1 . Targets Rammed 1 | . . . . . 1 . Kicked . | . . . . . . . Crushed . | . . . . . . . Highest Temperature 75 | . 2 4 . . 75 . Average Temperature 29 | . 2 3 . . 33 . Received Heat Transfer 894 | . 270 33 . . 522 69 Siege Activations . | . . . . . . . Martial Activations . | . . . . . . . Shielding Activations . | . . . . . . . Robots Disrupted . | . . . . . . . Combat Hostiles . | . . . . . . . Robots Corrupted . | . . . . . . . Combat Hostiles . | . . . . . . . Parts Fried . | . . . . . . . Impact Corruptions 1 | . . . . . 1 . Robots Melted . | . . . . . . . Combat Hostiles . | . . . . . . . Parts Melted . | . . . . . . . Heat Transferred . | . . . . . . . Parts Sabotaged . | . . . . . . . Parts Stolen . | . . . . . . . Parts Stripped . | . . . . . . . Power Chain Reactions . | . . . . . . . Alert | -11 -10 -10 -10 -9 -8 -8 ------- Run | Yrd Mat Min Exi Min Mat Gar Maximum Alert Level 2 | . . . . . 1 2 Low Security (%) 79 | 100 100 100 . 100 91 5 Level 1 7 | . . . . . 8 32 Level 2 12 | . . . . . . 62 Level 3 . | . . . . . . . Level 4 . | . . . . . . . Level 5 . | . . . . . . . High Security . | . . . . . . . Max Security . | . . . . . . . Peak Influence 513 | 5 160 96 . 58 278 513 Initial 156 | . . 46 . . . 156 Average 108 | . 56 13 . 8 89 373 Influence Increases 1478 | 10 328 73 . 58 622 387 Destroy 0b10 Robot/C 900 | . 240 60 . 40 380 180 Destroy 0b10 Robot/NC 45 | 10 . . . . 35 . Destroy Leader 150 | . 50 10 . 10 70 10 Allied During Kill 18 | . . 3 . 8 7 . Successful Hack 30 | . 8 . . . 12 10 Disable Machine 45 | . . . . . 45 . Anti-Garrison Action 100 | . . . . . . 100 Destroy Structure 160 | . . . . . 73 87 Lose Combat Pursuer 30 | . 30 . . . . . Influence Decreases 965 | 10 208 193 . 58 381 115 Entered New Map 159 | . . 74 . . . 85 Time Decay 575 | 10 198 99 . 58 210 . Lost Part 180 | . 10 20 . . 120 30 Lost Ally 51 | . . . . . 51 . Squads Dispatched 8 | . 2 . . . 6 . Investigation 2 | . 1 . . . 1 . Extermination . | . . . . . . . Reinforcement 5 | . 1 . . . 4 . Assault . | . . . . . . . Garrison 1 | . . . . . 1 . Intercept . | . . . . . . . Searches Triggered . | . . . . . . . Construction Impeded 2 | . . . . . 2 . Haulers Reinforced . | . . . . . . . Active Scanning Responses . | . . . . . . . Cargo Convoy Interrupts . | . . . . . . . Stealth | -11 -10 -10 -10 -9 -8 -8 --------- Run | Yrd Mat Min Exi Min Mat Gar Distress Signals 2 | . 1 . . . 1 . Communications Jammed . | . . . . . . . Distress Signals . | . . . . . . . Times Spotted 70 | . 20 10 . 3 29 8 Peak Tracking Total 8 | . 5 4 . 3 8 2 Tactical Retreats 2 | . 2 . . . . . Traps | -11 -10 -10 -10 -9 -8 -8 ------- Run | Yrd Mat Min Exi Min Mat Gar Traps Triggered 5 | . 1 . . . . 4 Indirectly . | . . . . . . . Trap Hack Attempts . | . . . . . . . Triggered . | . . . . . . . Disarmed . | . . . . . . . Reprogrammed . | . . . . . . . Reused . | . . . . . . . Traps Extracted . | . . . . . . . Installed . | . . . . . . . Triggered . | . . . . . . . Machines | -11 -10 -10 -10 -9 -8 -8 ---------- Run | Yrd Mat Min Exi Min Mat Gar Machines Disabled 6 | . . . . . 3 3 Max in Single Turn 1 | . . . . . 1 1 Garrison Relay 1 | . . . . . . 1 Phase Generator 1 | . . . . . . 1 Machines Repaired . | . . . . . . . Machines Dismantled . | . . . . . . . Machines Sabotaged . | . . . . . . . Overloaded Fab Kills . | . . . . . . . Hacking | -11 -10 -10 -10 -9 -8 -8 --------- Run | Yrd Mat Min Exi Min Mat Gar Machines Accessed 10 | . 4 . 2 . 3 1 Terminals 7 | . 4 . . . 2 1 Fabricators . | . . . . . . . Repair Stations . | . . . . . . . Recycling Units . | . . . . . . . Scanalyzers . | . . . . . . . Garrison Access 1 | . . . . . 1 . Total Hacks 21 | . 10 . 2 . 8 1 Successful 8 | . 1 . 2 . 4 1 Failed 13 | . 9 . . . 4 . Catastrophic 1 | . 1 . . . . . Database Lockouts . | . . . . . . . Manual 14 | . 7 . 1 . 6 . Terminals 18 | . 10 . . . 7 1 Fabricators . | . . . . . . . Repair Stations . | . . . . . . . Recycling Units . | . . . . . . . Scanalyzers . | . . . . . . . Garrison Access 1 | . . . . . 1 . Terminal Hacks 6 | . 1 . 2 . 2 1 Record 1 | . . . 1 . . . Branch Access Points 1 | . 1 . . . . . Emergency Access Points 1 | . . . . . . 1 Garrison Index 1 | . . . . . 1 . Zone Layout 1 | . . . . . 1 . Proto ID Catalog 1 | . . . 1 . . . Fabricator Hacks . | . . . . . . . Repair Station Hacks . | . . . . . . . Recycling Unit Hacks . | . . . . . . . Scanalyzer . | . . . . . . . Garrison Access Hacks 1 | . . . . . 1 . Unlock Access 1 | . . . . . 1 . Unauthorized Hacks 1 | . . . . . 1 . Terminals 1 | . . . . . 1 . Botnet 1 | . . . . . 1 . Fabricators . | . . . . . . . Repair Stations . | . . . . . . . Recycling Units . | . . . . . . . Scanalyzers . | . . . . . . . Garrison Access . | . . . . . . . Data Cores Recovered . | . . . . . . . Used . | . . . . . . . Hacking Detections 6 | . 4 . . . 1 1 Full Trace Events 3 | . 2 . . . 1 . Feedback Events . | . . . . . . . Feedback Blocked . | . . . . . . . Robot Schematics Acquired . | . . . . . . . Robots Built . | . . . . . . . Authchips . | . . . . . . . Time . | . . . . . . . Total Robot Build Rating . | . . . . . . . Part Schematics Acquired . | . . . . . . . Parts Built . | . . . . . . . Authchips . | . . . . . . . Time . | . . . . . . . Total Part Build Rating . | . . . . . . . Parts Repaired . | . . . . . . . Time . | . . . . . . . Parts Recycled . | . . . . . . . Recycled Matter . | . . . . . . . Retrieved Matter . | . . . . . . . Retrieved Components . | . . . . . . . Parts Scanalyzed . | . . . . . . . Part Schematics Acquired . | . . . . . . . Parts Damaged . | . . . . . . . Bothacking | -11 -10 -10 -10 -9 -8 -8 ------------ Run | Yrd Mat Min Exi Min Mat Gar Used RIF Installer . | . . . . . . . Robots Hacked . | . . . . . . . Non-combat . | . . . . . . . Combat . | . . . . . . . Robot Hacks Applied . | . . . . . . . Relay Couplers Released 4 | . . . . . . 4 Machine Destruction 4 | . . . . . . 4 Fabnet Peak Effective % . | . . . . . . . Robots Rewired . | . . . . . . . Allies Hacked . | . . . . . . . Hacks Repelled . | . . . . . . . Allies | -11 -10 -10 -10 -9 -8 -8 -------- Run | Yrd Mat Min Exi Min Mat Gar Total Allies 3 | . . 3 . . . . Largest Group 3 | . . 3 3 3 3 . Highest-Rated Group 40 | . . 40 40 40 40 . Highest-Rated Ally 16 | . . 16 16 16 16 . Total Orders . | . . . . . . . Ally Attacks 31 | . . 13 . 4 14 . Total Damage 235 | . . 104 . 27 104 . Kills 5 | . . 2 . 1 2 . Allies Corrupted . | . . . . . . . Allies Melted . | . . . . . . . Intel | -11 -10 -10 -10 -9 -8 -8 ------- Run | Yrd Mat Min Exi Min Mat Gar Active Infowar (turns) 1123 | 2 718 403 . . . . Seismic 1123 | 2 718 403 . . . . Robot Analysis Total . | . . . . . . . Derelict Logs Recovered 3 | . . 2 . 1 . . Drone Launches . | . . . . . . . Drone Recoveries . | . . . . . . . Exploration | -11 -10 -10 -10 -9 -8 -8 ------------- Run | Yrd Mat Min Exi Min Mat Gar Turns Passed 3257 | 127 718 568 390 385 495 574 Spaces Moved 1918 | 70 323 479 342 300 191 213 Core 14 | 14 . . . . . . Treads 566 | 56 323 15 . . . 172 Legs 482 | . . . 1 300 181 . Wheels 856 | . . 464 341 . 10 41 Hover . | . . . . . . . Flight . | . . . . . . . Fastest Speed 50 | 50 160 105 105 120 105 105 Average Speed 132 | 138 160 106 105 120 119 222 Slowest Speed 250 | 160 160 160 120 120 120 250 Overloaded Moves . | . . . . . . . Propulsion Burnouts . | . . . . . . . Robots Hopped . | . . . . . . . Potential Cave-ins . | . . . . . . . Cave-ins Triggered . | . . . . . . . Exploration Rate (%) 52 | 6 73 99 69 64 29 30 Regions Visited 6 Branch Regions 3 Pre-discovered Areas 2 | . . 1 1 . . . Known Exits Taken 2 | . 1 . . . 1 . Unknown Exits Taken 4 | 1 . 1 1 1 . . Scrap Searched 2 | . . 2 . . . . Spaces Dug 1 | . . . . . 1 . Terrain Destroyed 187 | . . . . . 73 114 Melee . | . . . . . . . Projectile 17 | . . . . . 17 . AOE 170 | . . . . . 56 114 Terrain Rammed . | . . . . . . . Walls Destroyed . | . . . . . . . Machines Disabled . | . . . . . . . Actions | -11 -10 -10 -10 -9 -8 -8 --------- Run | Yrd Mat Min Exi Min Mat Gar Total 2388 | 91 437 511 371 322 373 283 Wait 180 | . 52 11 22 15 69 11 Move 1913 | 69 322 478 341 299 191 213 Hop . | . . . . . . . Pick Up 52 | 10 9 6 6 3 15 3 Fast Attach 1 | . . . . . 1 . Attach 28 | 7 3 2 . . 12 4 Detach 1 | . . . . . 1 . Swap 12 | . 5 1 2 . 3 1 Drop 15 | . 3 1 . 3 7 1 Fire 144 | 5 43 12 . 2 73 9 Melee 20 | . . . . . . 20 Ram 1 | . . . . . 1 . Kick . | . . . . . . . Crush . | . . . . . . . Escape Stasis 21 | . . . . . . 21 Rewire . | . . . . . . . Trap . | . . . . . . . Miscellaneous . | . . . . . . . Route ------- -11/Scrapyard -10/Materials (discovered 4 exits: [*Mat x3] / *Min) -10/Mines (discovered 4 exits: [*Mat x2] / *Exi / [*Sub]) -10/Exiles -9/Mines -8/Materials -8/Garrison History --------- Turn | Location | Event 9 | -11/Scrapyard | Discovered new exit (range 15) 128 | -11/Scrapyard | Entered Materials 316 | -10/Materials | Build established: Mutant 371 | -10/Materials | Discovered new exit (range 5) 634 | -10/Materials | Discovered new exit (range 14) 667 | -10/Materials | Identified exit to Mines 790 | -10/Materials | Discovered new exit (range 16) 846 | -10/Materials | Entered Mines 847 | -10/Mines | Assembled infested the area 852 | -10/Mines | Assisted by a Guerilla fighting off Assembled 911 | -10/Mines | Learned location of Storage (-7) 941 | -10/Mines | Discovered new exit (range 15) 978 | -10/Mines | Learned Materials emergency access door positions 1017 | -10/Mines | Discovered new exit (range 6) 1071 | -10/Mines | Discovered new exit (range 8) 1085 | -10/Mines | Assisted by bots powering up and referring to "LRC-V3" 1248 | -10/Mines | Deemed a non-threat by the Exiles lab entrance 1398 | -10/Mines | Discovered new exit (range 5) 1414 | -10/Mines | Entered Exiles 1414 | -10/Exiles | Accompanied by 3 allies 1443 | -10/Exiles | Met 8R-AWN 1458 | -10/Exiles | Met EX-HEX 1507 | -10/Exiles | Met EX-DEC 1525 | -10/Exiles | Learned location of Zion (-6) 1626 | -10/Exiles | Met EX-BIN 1641 | -10/Exiles | Aligned with FarCom system 1642 | -10/Exiles | Given EX-Vault access code 1666 | -10/Exiles | Opened EX-Vault 1674 | -10/Exiles | Found Skeleton Box 1678 | -10/Exiles | Found Gui. Plasma Cannon 1681 | -10/Exiles | Found 0b10 Alert Chip 1704 | -10/Exiles | Warned to stay clear of 0b10 Research branches 1769 | -10/Exiles | Discovered new exit (range 11) 1804 | -10/Exiles | Stole three prototypes: 0b10 Alert Chip, Skeleton Box, Gui. Plasma Cannon 1804 | -10/Exiles | Entered Mines 1804 | -9/Mines | Accompanied by 3 allies 1915 | -9/Mines | Learned 2 Materials zone layouts 1948 | -9/Mines | A weapon hastily lodged in a ceiling crevice suddenly fell to the ground 2048 | -9/Mines | Discovered new exit (range 10) 2053 | -9/Mines | Core integrity fell below 50% 2088 | -9/Mines | Build established: Scavenger-Mutant 2105 | -9/Mines | Received a Rocket Launcher from a helpful Derelict 2107 | -9/Mines | Found a Scrap Suit stashed away for nefarious purposes 2189 | -9/Mines | Entered Materials 2189 | -8/Materials | Accompanied by 3 allies 2189 | -8/Materials | Evolved 4 slots: Utility x2, Weapon x2 2373 | -8/Materials | Lost 4 parts (4w) 2637 | -8/Materials | Garrison activated, responded to threat 2681 | -8/Materials | Core integrity fell below 50% 2684 | -8/Materials | Identified exit to Garrison 2684 | -8/Materials | Entered Garrison 2705 | -8/Garrison | Lost 6 parts (1p2n1u2w) 2762 | -8/Garrison | Triggered checkpoint 2782 | -8/Garrison | Garrison Relay disabled 2901 | -8/Garrison | Phase Generator disabled 2922 | -8/Garrison | Build established: Hacker-Mutant 3164 | -8/Garrison | Triggered checkpoint 3234 | -8/Garrison | Core integrity fell below 20% 3258 | -8/Garrison | Self-destructed Last Messages --------------- Found 4 emergency access points. Map updated. 03164_ Sneak attack on G-47 Trooper. 03164_ G-47 Trooper destroyed. 03171_ ALERT: Dispatching investigation squad to Factory. 03181_ G-47 Trooper destroyed. 03183_ Acquired 102 matter. 03193_ G-47 Trooper suffers critical hit (Impale). 03193_ G-47 Trooper destroyed. 03194_ Acquired 50 matter. 03204_ Acquired Lgt. Nuclear Core. 03217_ Penetrated by Slug. 03240_ H-55 Commando destroyed. 03242_ Slug penetrates Wall. 03248_ Penetrated by Slug. 03248_ Core Shielding destroyed. 03253_ H-55 Commando destroyed. 03255_ Acquired 52 matter. Map ----- +----------------------------------------------------+ | #??# #?????????????????????????????????? | | #??# #?????????????????????????????????? | | #??+ +?????????????????????????????????? | | #??# #?????????????????????????????????? | | ##?# #?????????????????????????????????? | | ### ###???????????????????????????????? | | # #???????????????????????????????? | | #### # #???????????????????????????????? | | ### ###?#######???????????????????????? | | #### = #??#" !#???????????????????????? | | # # ##### ##### !#######??????????????????? | | ??#?##### #??????????????????? | | ???????##^ ### #??????????????????? | | ???????# ######+## # #?# #??????????????????? | | ???????## ###### ##### ##?# #??????????????????? | | ???????# ## ## #### #??# #??????????????????? | | ######## # # # ## #### ##?????????????????? | | #?????????????????? | | #?????????????????? | | #?????????????????? | | ########## ## ## ## #### ### #?????????????????? | | ?????????# ###### #??#%#?# T#????????????????? | | ?????????# #????# ###??#!#?# ##????????????????? | | ?????????# #????####???# #?# #?????????????????? | | " *"### ############# ### #?????????????????? | | * [@* #??ggg????????????? | | ################[### #?????????????????? | | ?? ????????????????# #?# ?????????????????? | | ?? ?????????????????# #?# ?????????????????? | | " #???????????????????# #?# ????????????????? | | "?????????????????????#=#?# ##????????????????? | | ???????????????????????#[###^^ ## #???????????? | | ???????????????????????#= *= ????????? | | ???????????????????????###[ ????????? | | ?????????????????????????? ????????? | | ??????????????????????????? ?????????? | | ???????????????????????????# ^^## ## ?????????? | | ???????????????????????????? #??? #???????????? | | ????????????????????????????? ???? ??????????? | | ????????????????????????????? ???????????????? | | ?????????????????????????????? ??????????????? | | ???????????????????????????????##"""?????????????? | | ?????????????????????????????????????????????????? | | ?????????????????????????????????????????????????? | | ?????????????????????????????????????????????????? | | ?????????????????????????????????????????????????? | | ?????????????????????????????????????????????????? | | ?????????????????????????????????????????????????? | | ?????????????????????????????????????????????????? | | ?????????????????????????????????????????????????? | +----------------------------------------------------+ Best States ------------- Heat Dissipation 31 Energy Generation 14 Energy Capacity 160 Matter Stores 300 Matter Capacity 300 Sight Range 16 Terrain Scan Density 10 Armor Coverage 150 Core Shielding 20 Propulsion Shielding 66 Evasion (%) 55 Recoil Reduction 2 Offensive Hacking 20 Item Schematics ----------------- None Robot Schematics ------------------ None Fabricated ------------ Nothing Repaired ---------- Nothing Alien Tech Used ----------------- None Achievements -------------- None Challenges ------------ None Game ------ Seed RingMiningBiocell Manual? 0 Play Time 00:23:30 Cumulative 229.3 hours Start 2025.08.29 @ 15:54:44 End 2025.08.29 @ 16:51:38 Sessions 3 Manual Loads 0 Difficulty Rogue Special Mode None Game No. 334 Rogue 334 Adventurer 0 Explorer 0 Win Type - Total 4 Types 3/0/1/0/0/0/0/0/0/0 Lore% 81 Gallery% 76 Achievement% 58 Wizard Run 0 Options --------- Layout 1 ASCII 0 Keyboard 0 Movement Mouse Keybinds 0 Fullscreen 1 Font 24/Smallcaps Map View 50x40 Zoom Use 0% Tactical HUD 1 Map Filters NONE Filters NONE Steam 1 RUN: a12afd67-94a8-4f7a-94e4-2788e62f54b2